Cogmind - Beta 10.2 @@@ ROGUE MODE // 2021.12.17 @ 20:00:09 Player: TLFP Result: Destroyed by G-34 Mercenary with Small Laser Performance ------------- Evolutions (0) 0 Regions Visited (1) 200 Robots Destroyed (9) 45 Value Destroyed (362) 362 Prototype IDs (0) 0 Alien Tech Used (0) 0 Bonus (0) 0 TOTAL SCORE: 607 Bonus ------- None Cogmind --------- Core Integrity 0/250 Matter 201/300 Energy 248/250 System Corruption 0% Temperature Cool (7) Movement Treading (160) Location -10/Materials Parts ------- > --- POWER (1) -------- Ion Engine > --- PROPULSION (2) --- Light Treads > --- UTILITY (2) ------ Small Storage Unit Light Armor Plating > --- WEAPON (2) ------- (None) > --- INVENTORY (6) ---- Light Treads Aluminum Leg Aluminum Leg Compact Wheel Peak State ------------ > --- POWER ------------ Ion Engine > --- PROPULSION ------- Light Treads Light Treads > --- UTILITY ---------- Small Storage Unit Signal Interpreter > --- WEAPON ----------- Particle Gun > --- INVENTORY -------- Aluminum Leg Aluminum Leg Compact Wheel [Rating: 7] Favorites ----------- Power Ion Engine Engine Ion Engine Propulsion Light Treads Treads Light Treads Leg Aluminum Leg Wheel Wheel Utility Small Storage Unit Storage Small Storage Unit Processor Signal Interpreter Protection Light Armor Plating Weapon Assault Rifle Energy Gun EM Pulse Gun Ballistic Gun Assault Rifle Launcher Grenade Launcher Build | -11 -10 ------- Run | Scr Mat Slots Evolved . | . . Power . | . . Propulsion . | . . Utility . | . . Weapon . | . . Parts Attached 17 | . 17 Power 2 | . 2 Engine 2 | . 2 Core . | . . Reactor . | . . Propulsion 6 | . 6 Treads 4 | . 4 Leg . | . . Wheel 2 | . 2 Hover . | . . Flight . | . . Utility 2 | . 2 Device . | . . Storage . | . . Processor 1 | . 1 Hackware . | . . Protection 1 | . 1 Artifact . | . . Weapon 7 | . 7 Energy Gun 3 | . 3 Energy Cannon . | . . Ballistic Gun 3 | . 3 Ballistic Cannon . | . . Launcher 1 | . 1 Special Weapon . | . . Impact Weapon . | . . Slashing Weapon . | . . Piercing Weapon . | . . Special Melee Weapon . | . . Unidentified Prototypes . | . . Parts Lost 10 | . 10 Power 1 | . 1 Propulsion 3 | . 3 Utility . | . . Weapon 6 | . 6 Highest Loss Streak 3 | . 3 Average Slot Usage (%) 67 | . 67 Engine 5 | . 5 Treads 22 | . 22 Wheel 1 | . 1 Storage 14 | . 14 Processor 8 | . 8 Energy Gun 4 | . 4 Ballistic Gun 9 | . 9 Naked Turns . | . . Heaviest Build 12 | 11 12 Greatest Support 40 | 20 40 Greatest Overweight (x) 3 | . 3 Average Overweight (x) . | . . Largest Inventory Capacity 6 | . 6 Average Capacity 6 | . 6 Most Carried 6 | . 6 Average Carried 4 | . 4 Final Capacity 6 | 6 6 Final Carried 6 | 6 4 Class Distribution -------------------- 100% | Mutant Dominant Class ---------------- Mutant | -10/Materials Resources | -11 -10 ----------- Run | Scr Mat Matter Collected 420 | 200 220 Remotely . | . . Salvage Created 318 | . 318 Parts 15 | . 15 Haulers Intercepted . | . . Recyclers Shooed . | . . Parts Field Recycled . | . . Retrieved Matter . | . . Parts Self-Destructed . | . . Prevented . | . . Kills | -11 -10 ------- Run | Scr Mat Combat Hostiles Destroyed 9 | . 9 Melee 1 | . 1 Guns 8 | . 8 Classes Destroyed 1 | . 1 Grunt 9 | . 9 Best Kill Streak 3 | . 3 Combat Bots Only 3 | . 3 Max Kills in Single Turn 1 | . 1 Gunslinging . | . . Exploded . | . . Melee 1 | . 1 Uniques/NPCs Destroyed . | . . Combat | -11 -10 -------- Run | Scr Mat Damage Taken 1223 | . 1223 Core 259 | . 259 Absorbed by Shields . | . . Core Remaining (%) 100 | 100 . Volleys Fired 68 | . 68 Largest 2 | . 2 Hottest 65 | . 65 Shots Fired 80 | . 80 Gun 75 | . 75 Cannon . | . . Launcher 5 | . 5 Special . | . . Kinetic 42 | . 42 Thermal 15 | . 15 Explosive 5 | . 5 Electromagnetic 18 | . 18 Robot Hit Streak 14 | . 14 Robot Miss Streak 3 | . 3 Penetration Max . | . . Secondary Targets . | . . Shots Hit Robots 58 | . 58 Core Hits 21 | . 21 Critical Hits . | . . Critical Kills . | . . Critical Parts Destroyed . | . . Melee Attacks . | . . Impact . | . . Slashing . | . . Piercing . | . . Sneak Attacks . | . . Combat Hostiles . | . . Follow-up Attacks . | . . Damage Inflicted 905 | . 905 Guns 715 | . 715 Cannons . | . . Explosions 185 | . 185 Melee . | . . Ramming 5 | . 5 Kinetic 391 | . 391 Thermal 170 | . 170 Explosive 185 | . 185 Electromagnetic 154 | . 154 Impact . | . . Slashing . | . . Piercing . | . . Highest Corruption . | . . Average Corruption . | . . Corruption Purged . | . . Overload Shots . | . . Overflow Damage 2 | . 2 Projectiles . | . . Explosions 2 | . 2 Melee . | . . Knockbacks . | . . Impact . | . . Kinetic . | . . Secondary . | . . Self-Inflicted Damage 63 | . 63 Shots 4 | . 4 Rammed 3 | . 3 Targets Rammed 4 | . 4 Kicked . | . . Crushed 1 | . 1 Highest Temperature 382 | . 382 Average Temperature 115 | . 115 Received Heat Transfer 642 | . 642 Effects 2 | . 2 Shutdowns 1 | . 1 Matter Decay 1 | . 1 Siege Activations . | . . Robots Corrupted . | . . Combat Hostiles . | . . Parts Fried . | . . Impact Corruptions . | . . Robots Melted . | . . Combat Hostiles . | . . Parts Melted 1 | . 1 Heat Transferred 407 | . 407 Parts Sabotaged . | . . Parts Stolen . | . . Parts Stripped . | . . Power Chain Reactions . | . . Missiles Intercepted . | . . Alert | -11 -10 ------- Run | Scr Mat Peak Influence 160 | . 160 Initial . | . . Average 68 | . 68 Maximum Alert Level . | . . Low Security (%) 100 | . 100 Level 1 . | . . Level 2 . | . . Level 3 . | . . Level 4 . | . . Level 5 . | . . High Security . | . . Max Security . | . . Squads Dispatched 5 | . 5 Investigation 2 | . 2 Extermination . | . . Reinforcement 3 | . 3 Assault . | . . Garrison . | . . Intercept . | . . Construction Impeded . | . . Haulers Reinforced . | . . Stealth | -11 -10 --------- Run | Scr Mat Distress Signals 2 | . 2 Communications Jammed . | . . Distress Signals . | . . Times Spotted 21 | . 21 Peak Tracking Total 4 | . 4 Tactical Retreats 3 | . 3 Traps | -11 -10 ------- Run | Scr Mat Traps Triggered 4 | . 4 Indirectly . | . . Trap Hack Attempts . | . . Triggered . | . . Disarmed . | . . Reprogrammed . | . . Reused . | . . Traps Extracted . | . . Installed . | . . Triggered 1 | . 1 Machines | -11 -10 ---------- Run | Scr Mat Machines Disabled 3 | . 3 Max in Single Turn 2 | . 2 Machines Sabotaged . | . . Garrisons Compromised . | . . Overloaded Fab Kills . | . . Fab Network Shutdowns . | . . Hacking | -11 -10 --------- Run | Scr Mat Machines Accessed 3 | . 3 Terminals 3 | . 3 Fabricators . | . . Repair Stations . | . . Recycling Units . | . . Scanalyzers . | . . Garrison Access . | . . Total Hacks 9 | . 9 Successful . | . . Failed 9 | . 9 Catastrophic 3 | . 3 Database Lockouts . | . . Manual 9 | . 9 Terminals 9 | . 9 Fabricators . | . . Repair Stations . | . . Recycling Units . | . . Scanalyzers . | . . Garrison Access . | . . Terminal Hacks . | . . Fabricator Hacks . | . . Repair Station Hacks . | . . Recycling Unit Hacks . | . . Scanalyzer . | . . Garrison Access Hacks . | . . Unauthorized Hacks . | . . Terminals . | . . Fabricators . | . . Repair Stations . | . . Recycling Units . | . . Scanalyzers . | . . Garrison Access . | . . Data Cores Recovered . | . . Used . | . . Hacking Detections 3 | . 3 Full Trace Events . | . . Feedback Events . | . . Feedback Blocked . | . . Robot Schematics Acquired . | . . Robots Built . | . . Matter . | . . Time . | . . Total Robot Build Rating . | . . Part Schematics Acquired . | . . Parts Built . | . . Matter . | . . Time . | . . Total Part Build Rating . | . . Parts Repaired . | . . Time . | . . Parts Recycled . | . . Recycled Matter . | . . Retrieved Matter . | . . Retrieved Components . | . . Parts Scanalyzed . | . . Part Schematics Acquired . | . . Parts Damaged . | . . Bothacking | -11 -10 ------------ Run | Scr Mat Used RIF Installer . | . . Robots Hacked . | . . Non-combat . | . . Combat . | . . Robot Hacks Applied . | . . Relay Couplers Released . | . . Robots Rewired . | . . Allies Hacked . | . . Hacks Repelled . | . . Allies | -11 -10 -------- Run | Scr Mat Total Allies . | . . Largest Group . | . . Highest-Rated Group . | . . Highest-Rated Ally . | . . Total Orders . | . . Ally Attacks . | . . Total Damage . | . . Kills . | . . Allies Corrupted . | . . Allies Melted . | . . Intel | -11 -10 ------- Run | Scr Mat Robot Analysis Total . | . . Derelict Logs Recovered . | . . Drone Launches . | . . Drone Recoveries . | . . Exploration | -11 -10 ------------- Run | Scr Mat Turns Passed 696 | . 696 Spaces Moved 347 | 1 346 Core 1 | . 1 Treads 279 | . 279 Legs 6 | 1 5 Wheels 61 | . 61 Hover . | . . Flight . | . . Fastest Speed 80 | 120 80 Average Speed 147 | 120 147 Slowest Speed 200 | 120 200 Overloaded Moves . | . . Propulsion Burnouts . | . . Robots Hopped . | . . Cave-ins Triggered . | . . Exploration Rate (%) 28 | 1 55 Regions Visited 1 Branch Regions . Pre-discovered Areas . | . . Known Exits Taken . | . . Unknown Exits Taken 1 | 1 . Scrap Searched . | . . Spaces Dug . | . . Terrain Destroyed 25 | . 25 Melee . | . . Projectile . | . . AOE 25 | . 25 Terrain Rammed . | . . Walls Destroyed . | . . Machines Disabled . | . . Actions | -11 -10 --------- Run | Scr Mat Total 447 | . 447 Wait 5 | . 5 Move 346 | . 346 Hop . | . . Pick Up 7 | . 7 Fast Attach 6 | . 6 Attach 8 | . 8 Detach . | . . Swap 3 | . 3 Drop . | . . Fire 68 | . 68 Melee . | . . Ram . | . . Kick . | . . Crush 4 | . 4 Escape Stasis . | . . Rewire . | . . Trap . | . . Miscellaneous . | . . Route ------- -11/Scrapyard -10/Materials (discovered 2 exits: *Mat x2) History --------- Turn | Location | Event 1 | -11/Scrapyard | Discovered new exit (range 0) 1 | -11/Scrapyard | Entered Materials 102 | -10/Materials | Discovered new exit (range 6) 130 | -10/Materials | Lost 3 parts (1n2w) 139 | -10/Materials | Core integrity fell below 50% 303 | -10/Materials | Build established: Mutant 328 | -10/Materials | Identified exit to Materials 560 | -10/Materials | Lost 3 parts (1n2w) 581 | -10/Materials | Core integrity fell below 20% 615 | -10/Materials | Discovered exit to Materials (range 3) 697 | -10/Materials | Destroyed by G-34 Mercenary with Small Laser Last Messages --------------- 00578_ G-34 Mercenary destroyed. 00582_ K-01 Serf collects debris. 00588_ Power failure, Ion Engine shutdown. 00588_ Overheating: Matter decay (-33). 00588_ G-34 Mercenary destroyed. 00596_ U-05 Engineer builds a Door. 00615_ EXIT=FOUND: MATERIALS 00628_ Triggered Alarm Trap. 00628_ An alarm sounds. 00628_ ALERT: Alarm triggered, dispatching investigation squad. 00632_ U-05 Engineer lays Concrete. 00655_ Particle Gun destroyed. 00671_ Acquired Lgt. Armor Plating. 00672_ Discarded Signal Interpreter. 00678_ Acquired Lgt. Treads. 00689_ O-16 Technician: "IFF HANDSHAKE FAILED. SECURING TERMINAL." 00694_ O-16 Technician uses terminal to summon reinforcements. 00694_ ALERT: Hostiles spotted, dispatching reinforcements to Terminal M002. 00694_ O-16 Technician locks terminal. Map ----- +----------------------------------------------------+ | | | | | | | | | | | | | | | | | | | | | | | | | | | ?????????????????????????????????? | | ?????????????????????????????????? | | ?????????????????????????????????? | | ?????????????????????????????????? | | ?????????????????????????????????? | | #########????????????????????????? | | #?????????????????######## | | """ #???????########### ! # | | """ #???????# # # # | | """ #???????# To# # """ # | | #???????# /gg/ """ # | | """ #???????# = ! # # """ # | | """ #???????# =!! # @# # | | """ #???????# !! # #######? | | #???????######## #??????? | | #########??????????????# #??????? | | ???????????????????????# #??????? | | ???????????????????????# #??????? | | ???????????????????????# #??????? | | ??????????????######???# #??????? | | ??????+######## ##### +??????? | | ??????? #??????? | | ######????????# #??????? | | #????????# ##+#####??????? | | #????????## ## ?????????? | | #?????????# ## #???????? | | ## #?????????# ## "" #???????? | | ?? #?????????# ## "Y !#???????? | | ??? #?????????# ## "" #???????? | | ?? ##????????# ## #???????? | | # #?#+###### ##########?????? | | #?????? | | < #?????? | | #?????? | | ??? ###+######+######+####?????? | | #######?????????????# #?????? | | #?????????????# ! #?????? | +----------------------------------------------------+ Best States ------------- Heat Dissipation 25 Energy Generation 10 Energy Capacity 250 Matter Stores 280 Matter Capacity 300 Sight Range 16 Terrain Scan Density 10 Armor Coverage 150 Evasion (%) 42 Recoil Reduction 2 Item Schematics ----------------- None Robot Schematics ------------------ None Fabricated ------------ Nothing Alien Tech Used ----------------- None Achievements -------------- None Challenges ------------ None Game ------ Seed CoolantImpactAutocannon Manual? 0 Play Time 00:04:54 Cumulative 46.1 hours Start 2021.12.17 @ 19:55:31 End 2021.12.17 @ 20:00:09 Sessions 1 Manual Loads 0 Difficulty Rogue Special Mode None Game No. 33 Rogue 4 Adventurer 24 Explorer 5 Win Type - Total 0 Types 0/0/0/0/0/0/0/0/0 Lore% 29 Gallery% 49 Achievement% 39 Wizard Run 0 Options --------- ASCII 0 Keyboard 0 Movement Mouse Keybinds 0 Fullscreen 1 Font 18/SmallcapsGlow Map View 76x50 Tactical HUD 1 Map Filters NONE Filters NONE Steam 1 RUN: 5b26e20b-4f40-461b-8ef5-69180f2d4c01